fUST/lending_fUST_20240624
["ID","MTS","AMOUNT","RATE_DAILY","PERIOD"]
[330228004,1719196241004,-254.62759597,0.00016438,2]
[330228006,1719196241015,-357.67699015,0.00016438,2]
[330228008,1719196241025,-500.0,0.00016438,2]
[330228010,1719196241035,-500.0,0.00016438,2]
[330228012,1719196241045,-500.0,0.00016438,2]
[330228014,1719196241055,-500.0,0.00016438,2]
[330228016,1719196241065,-3662.87,0.00016438,2]
[330228018,1719196241076,-500.0,0.00016438,2]
[330228020,1719196241086,-502.90414204,0.00016438,2]
[330228022,1719196241096,-1082.25,0.00016438,2]
[330228024,1719196241106,-509.80709785,0.00016438,2]
[330228026,1719196241116,-5369.23,0.00016438,2]
[330228028,1719196241125,-500.0,0.00016438,2]
[330228030,1719196241135,-18266.37,0.00016438,2]
[330228032,1719196241144,-500.0,0.00016438,2]
[330228034,1719196241154,-509.00876116,0.00016438,2]
[330228036,1719196241163,-500.0,0.00016438,2]
[330228038,1719196241173,-1300.24,0.00016438,2]
[330228040,1719196241183,-255.27842611,0.00016438,2]
[330228042,1719196241192,-871.15,0.00016438,2]
[330228044,1719196241202,-506.54371939,0.00016438,2]
[330228046,1719196241212,-250.0,0.00016438,2]
[330228048,1719196241222,-500.0,0.00016438,2]
[330228050,1719196241232,-500.0,0.00016438,2]
[330228052,1719196241242,-501.42338681,0.00016438,2]
[330228054,1719196241253,-1541.0,0.00016438,2]
[330228056,1719196241263,-151.0,0.00016438,2]
[330228058,1719196241273,-151.0,0.00016438,2]
[330228060,1719196241283,-151.0,0.00016438,2]
[330228062,1719196241292,-151.0,0.00016438,2]
[330228064,1719196241301,-1981.23,0.00016438,2]
[330228066,1719196241311,-151.0,0.00016438,2]
[330228069,1719196241321,-5054.32,0.00016438,2]
[330228071,1719196241332,-11946.46,0.00016438,2]
[330228073,1719196241341,-203.868036,0.00016438,2]
[330228075,1719196241351,-508.08156746,0.00016438,2]
[330228077,1719196241361,-500.11637849,0.00016438,2]
[330228078,1719196241370,-500.0,0.00016438,2]
[330228081,1719196241380,-154.831503,0.00016438,2]
[330228082,1719196241389,-1241.7,0.00016438,2]
[330228084,1719196241399,-500.39816589,0.00016438,2]
[330228087,1719196241409,-16409.46,0.00016438,2]
[330228089,1719196241419,-509.23645367,0.00016438,2]
[330228091,1719196241430,-626.41,0.00016438,2]
[330228093,1719196241440,-1156.65,0.00016438,2]
[330228094,1719196241449,-3079.42,0.00016438,2]
[330228097,1719196241459,-500.0,0.00016438,2]
[330228099,1719196241469,-8223.761611,0.00016438,2]
[330228100,1719196241478,-2361.73905902,0.00016438,2]
[330228106,1719196241522,-5862.02255198,0.00016438,2]
[330228108,1719196241532,-8223.761611,0.00016438,2]
[330228110,1719196241541,-611.49,0.00016438,2]
[330228112,1719196241550,-512.26137028,0.00016438,2]
[330228114,1719196241560,-8223.761611,0.00016438,2]
[330228116,1719196241570,-8223.761611,0.00016438,2]
[330228118,1719196241580,-8223.761611,0.00016438,2]
[330228120,1719196241590,-8223.761611,0.00016438,2]
[330228122,1719196241600,-8223.761611,0.00016438,2]
[330228124,1719196241609,-8223.761611,0.00016438,2]
[330228126,1719196241619,-8223.761611,0.00016438,2]
[330228128,1719196241629,-8223.761611,0.00016438,2]
[330228130,1719196241639,-8223.761611,0.00016438,2]
[330228132,1719196241649,-8223.761611,0.00016438,2]
[330228134,1719196241660,-500.0,0.00016438,2]
[330228136,1719196241670,-8223.761611,0.00016438,2]
[330228138,1719196241680,-8223.761611,0.00016438,2]
[330228140,1719196241690,-8223.761611,0.00016438,2]
[330228142,1719196241700,-8223.761611,0.00016438,2]
[330228144,1719196241710,-5987.49,0.00016438,2]
[330228146,1719196241720,-8223.761611,0.00016438,2]
[330228148,1719196241729,-500.0,0.00016438,2]
[330228150,1719196241741,-544.35,0.00016438,2]
[330228152,1719196241754,-500.0,0.00016438,2]
[330228154,1719196241764,-500.0,0.00016438,2]
[330228156,1719196241774,-239.553702,0.00016438,2]
[330228158,1719196241783,-508.52931754,0.00016438,2]
[330228160,1719196241793,-500.0,0.00016438,2]
[330228162,1719196241802,-1893.51,0.00016438,2]
[330228164,1719196241812,-528.25375242,0.00016438,2]
[330228166,1719196241821,-500.50929265,0.00016438,2]
[330228168,1719196241831,-500.0,0.00016438,2]
[330228170,1719196241842,-8223.761611,0.00016453,2]
[330228172,1719196241852,-8223.761616,0.00016453,2]
[330228174,1719196241861,-222.37848584,0.00016489,2]
[330228176,1719196241871,-276.06944735,0.000165,2]
[330228178,1719196241880,-723.78639686,0.000165,2]
[330228180,1719196241890,-318.0694556,0.00016522,2]
[330228182,1719196241900,-155.21838447,0.00016522,2]
[330228184,1719196241909,-306.0,0.00016575,2]
[330228186,1719196241919,-153.0,0.00016575,2]
[330228188,1719196241929,-597.70730701,0.00016688,2]
[330228190,1719196241939,-500.0,0.00016712,2]
[330228192,1719196241948,-500.0,0.00016712,2]
[330228194,1719196241958,-500.0,0.00016712,2]
[330228196,1719196241968,-500.0,0.00016712,2]
[330228198,1719196241978,-500.0,0.00016712,2]
[330228199,1719196241988,-1113.85,0.00016712,2]
[330228201,1719196241998,-500.0,0.00016712,2]
[330228203,1719196242008,-500.0,0.00016712,2]
[330228205,1719196242018,-500.0,0.00016712,2]
[330228207,1719196242028,-500.0,0.00016712,2]
[330228209,1719196242038,-678.75,0.00016712,2]
[330228211,1719196242048,-490.82093063,0.00016712,2]
[330228214,1719196242058,-500.0,0.00016712,2]
[330228216,1719196242068,-500.0,0.00016712,2]
[330228217,1719196242078,-500.0,0.00016712,2]
[330228220,1719196242088,-500.0,0.00016712,2]
[330228222,1719196242099,-647.61,0.00016712,2]
[330228224,1719196242110,-500.0,0.00016712,2]
[330228226,1719196242120,-700.42,0.00016712,2]
[330228228,1719196242130,-500.0,0.00016712,2]
[330228230,1719196242140,-500.0,0.00016712,2]
[330228232,1719196242150,-500.0,0.00016712,2]
[330228234,1719196242159,-885.7,0.00016712,2]
[330228236,1719196242169,-500.0,0.00016712,2]
[330228238,1719196242179,-500.0,0.00016712,2]
[330228240,1719196242189,-1100.19,0.00016712,2]
[330228242,1719196242199,-500.0,0.00016712,2]
[330228244,1719196242208,-500.0,0.00016712,2]
[330228246,1719196242218,-500.0,0.00016712,2]
[330228248,1719196242228,-718.38,0.00016712,2]
[330228250,1719196242238,-960.73,0.00016712,2]
[330228252,1719196242247,-898.38,0.00016712,2]
[330228254,1719196242257,-2657.47,0.00016712,2]
[330228256,1719196242266,-697.99,0.00016712,2]
[330228258,1719196242276,-500.0,0.00016712,2]
[330228260,1719196242287,-500.0,0.00016712,2]
[330228262,1719196242297,-1154.38,0.00016712,2]
[330228264,1719196242306,-500.0,0.00016712,2]
[330228266,1719196242316,-500.0,0.00016712,2]
[330228268,1719196242326,-507.38,0.00016712,2]
[330228270,1719196242335,-1168.73,0.00016712,2]
[330228272,1719196242346,-500.0,0.00016712,2]
[330228274,1719196242356,-500.0,0.00016712,2]
[330228276,1719196242365,-1371.46,0.00016712,2]
[330228278,1719196242374,-500.0,0.00016712,2]
[330228280,1719196242384,-564.7,0.00016712,2]
[330228282,1719196242393,-500.0,0.00016712,2]
[330228284,1719196242403,-500.0,0.00016712,2]
[330228286,1719196242414,-500.0,0.00016712,2]
[330228288,1719196242424,-500.0,0.00016712,2]
[330228290,1719196242433,-500.0,0.00016712,2]
[330228292,1719196242443,-663.07,0.00016712,2]
[330228294,1719196242452,-375.57835272,0.00016712,2]
[330228296,1719196242462,-500.0,0.00016712,2]
[330228298,1719196242471,-523.96,0.00016712,2]
[330228300,1719196242481,-1040.42,0.00016712,2]
[330228302,1719196242491,-500.0,0.00016712,2]
[330228304,1719196242501,-500.0,0.00016712,2]
[330228306,1719196242510,-500.0,0.00016712,2]
[330228308,1719196242521,-830.96,0.00016712,2]
[330228310,1719196242530,-587.1,0.00016712,2]
[330228312,1719196242539,-213.0,0.00016712,2]
[330228314,1719196242549,-500.0,0.00016712,2]
[330228316,1719196242558,-500.0,0.00016712,2]
[330228318,1719196242566,-929.52,0.00016712,2]
[330228319,1719196242575,-853.84,0.00016712,2]
[330228322,1719196242585,-500.0,0.00016712,2]
[330228323,1719196242594,-1130.99,0.00016712,2]
[330228326,1719196242603,-1752.82360743,0.00016712,2]
[330228372,1719196243038,-558.10344264,0.00015999,2]
[330228498,1719196243935,-146.15708179,0.00015999,2]
[330228850,1719196246848,-9270.96472747,0.00015999,2]
[330232844,1719196405765,3000.0,0.000225,30]
[330232845,1719196504380,155.0,0.000225,30]
[330232846,1719196509432,155.0,0.000225,30]
[330232847,1719196514676,155.0,0.000225,30]
[330232848,1719196519303,155.0,0.000225,30]
[330232849,1719196523984,155.0,0.000225,30]
[330232850,1719196528936,155.0,0.000225,30]
[330232851,1719196534176,155.0,0.000225,30]
[330232852,1719196539072,155.0,0.000225,30]
[330232853,1719196544019,155.0,0.000225,30]
[330232854,1719196548633,155.0,0.000225,30]
[330232855,1719196553235,155.0,0.000225,30]
[330232856,1719196557843,155.0,0.000225,30]
[330232857,1719196562679,250.16212131,0.000225,30]
[330232858,1719196639979,258.24743035,0.0001,2]
[330232859,1719196719182,1304.45225806,0.000225,30]
[330232861,1719196996318,250.0,0.00013833,2]
[330232862,1719197023037,3000.0,0.000225,30]
[330232863,1719197042801,24900.0,0.00013808,2]
[330232864,1719197059990,726.1569755,0.00013964,2]
[330232865,1719197118846,1564.18029899,0.00013,2]
[330232866,1719197152375,2000.0,0.00013,2]
[330232867,1719197235146,-245.7606939,0.00014116,2]
[330232868,1719197235166,-1168.57145889,0.00014406,2]
[330232869,1719197235193,-500.0,0.00014506,2]
[330232870,1719197235220,-300.0,0.00015115,2]
[330232871,1719197235245,-42180.60213988,0.00015116,2]
[330232872,1719197235270,-246.77081675,0.00015653,2]
[330232873,1719197235297,-153.0,0.00015753,2]
[330232874,1719197235322,-1584.09393602,0.00015784,2]
[330232875,1719197235350,-246.77081673,0.00015824,2]
[330232876,1719197235374,-154.80649189,0.00015883,2]
[330232877,1719197235398,-153.0,0.0001589,2]
[330232878,1719197235423,-876.0,0.00015969,2]
[330232879,1719197235448,-150.0,0.00015969,2]
[330232880,1719197235469,-246.77081673,0.00015996,2]
[330232881,1719197235493,-318.0694556,0.00016023,2]
[330232882,1719197235519,-526.85721157,0.00016026,2]
[330232883,1719197235545,-306.0,0.00016027,2]
[330232884,1719197235574,-500.0,0.0001615,2]
[330232885,1719197235600,-246.77081673,0.00016167,2]
[330232886,1719197235623,-153.0,0.00016235,2]
[330232887,1719197235646,-153.0,0.00016235,2]
[330232888,1719197235672,-153.0,0.00016235,2]
[330232889,1719197235694,-153.0,0.00016235,2]
[330232890,1719197235717,-153.0,0.00016235,2]
[330232891,1719197235741,-153.0,0.00016235,2]
[330232892,1719197235763,-176.66307105,0.00016275,2]
[330232893,1719197235788,-246.77081673,0.00016338,2]
[330232894,1719197235812,-2000.0,0.00016338,2]
[330232895,1719197235836,-155.21973654,0.00016436,2]
[330232896,1719197235859,-500.0,0.00016438,2]
[330232897,1719197235882,-500.0,0.00016438,2]
[330232898,1719197235904,-500.0,0.00016438,2]
[330232899,1719197235928,-297.7263085,0.00016438,2]
[330232900,1719197235951,-506.70726259,0.00016438,2]
[330232901,1719197235974,-514.13588531,0.00016438,2]
[330232902,1719197235997,-500.0,0.00016438,2]
[330232903,1719197236020,-508.99294942,0.00016438,2]
[330232904,1719197236043,-500.0,0.00016438,2]
[330232905,1719197236070,-508.30758458,0.00016438,2]
[330232906,1719197236092,-500.44662187,0.00016438,2]
[330232907,1719197236116,-656.87,0.00016438,2]
[330232908,1719197236138,-504.05588584,0.00016438,2]
[330232909,1719197236164,-508.62772059,0.00016438,2]
[330232910,1719197236187,-510.30152882,0.00016438,2]
[330232911,1719197236210,-500.0,0.00016438,2]
[330232912,1719197236233,-627.91,0.00016438,2]
[330232913,1719197236256,-500.0,0.00016438,2]
[330232914,1719197236280,-500.0,0.00016438,2]
[330232915,1719197236303,-500.0,0.00016438,2]
[330232916,1719197236331,-500.0,0.00016438,2]
[330232917,1719197236355,-508.13568214,0.00016438,2]
[330232918,1719197236379,-500.0,0.00016438,2]
[330232919,1719197236402,-506.1621545,0.00016438,2]
[330232920,1719197236425,-505.04855781,0.00016438,2]
[330232921,1719197236448,-858.17,0.00016438,2]
[330232922,1719197236471,-500.0,0.00016438,2]
[330232923,1719197236494,-500.0,0.00016438,2]
[330232924,1719197236517,-507.42335309,0.00016438,2]
[330232925,1719197236541,-500.27088862,0.00016438,2]
[330232926,1719197236564,-500.0,0.00016438,2]
[330232927,1719197236590,-454.81352317,0.00016438,2]
[330232928,1719197236613,-677.43,0.00016438,2]
[330232929,1719197236809,-500.0,0.00016438,2]
[330232930,1719197236846,-500.0,0.00016438,2]
[330232931,1719197236867,-500.0,0.00016438,2]
[330232932,1719197236887,-500.0,0.00016438,2]
[330232933,1719197236907,-1082.25,0.00016438,2]
[330232934,1719197236928,-871.15,0.00016438,2]
[330232935,1719197236947,-524.92728122,0.00016438,2]
[330232936,1719197236967,-1981.23,0.00016438,2]
[330232937,1719197236986,-500.0,0.00016438,2]
[330232938,1719197237005,-1241.7,0.00016438,2]
[330232939,1719197237025,-626.41,0.00016438,2]
[330232940,1719197237045,-500.0,0.00016438,2]
[330232941,1719197237069,-500.0,0.00016438,2]
[330232942,1719197237089,-677.72,0.00016438,2]
[330232943,1719197237110,-511.43428098,0.00016438,2]
[330232944,1719197237130,-500.0,0.00016438,2]
[330232945,1719197237151,-503.08404458,0.00016438,2]
[330232946,1719197237172,-500.0,0.00016438,2]
[330232947,1719197237192,-572.66,0.00016438,2]
[330232948,1719197237212,-500.0,0.00016438,2]
[330232949,1719197237231,-507.62386156,0.00016438,2]
[330232950,1719197237252,-500.0,0.00016438,2]
[330232951,1719197237272,-303.70345105,0.00016438,2]
[330232952,1719197237291,-509.98638014,0.00016438,2]
[330232953,1719197237310,-504.19380257,0.00016438,2]
[330232954,1719197237330,-754.25,0.00016438,2]
[330232955,1719197237349,-500.67855219,0.00016438,2]
[330232956,1719197237369,-500.0,0.00016438,2]
[330232957,1719197237389,-502.23457565,0.00016438,2]
[330232958,1719197237409,-509.23411082,0.00016438,2]
[330232959,1719197237428,-974.72,0.00016438,2]
[330232960,1719197237448,-452.3761108,0.00016438,2]
[330232961,1719197237466,-503.90098251,0.00016438,2]
[330232962,1719197237486,-500.0,0.00016438,2]
[330232963,1719197237506,-504.39816337,0.00016438,2]
[330232964,1719197237526,-513.12286971,0.00016438,2]
[330232965,1719197237546,-501.65470859,0.00016438,2]
[330232966,1719197237565,-500.0,0.00016438,2]
[330232967,1719197237591,-911.46,0.00016438,2]
[330232968,1719197237610,-502.13,0.00016438,2]
[330232969,1719197237629,-500.8261616,0.00016438,2]
[330232970,1719197237650,-506.2344597,0.00016438,2]
[330232971,1719197237670,-500.0,0.00016438,2]
[330232972,1719197237690,-586.01,0.00016438,2]
[330232973,1719197237710,-500.0,0.00016438,2]
[330232974,1719197237729,-500.0,0.00016438,2]
[330232975,1719197237749,-505.59703051,0.00016438,2]
[330232976,1719197237769,-500.0,0.00016438,2]
[330232977,1719197237789,-506.06644704,0.00016438,2]
[330232978,1719197237808,-517.34990559,0.00016438,2]
[330232979,1719197237832,-508.8050644,0.00016438,2]
[330232980,1719197237851,-520.37862454,0.00016438,2]
[330232981,1719197237870,-501.64963776,0.00016438,2]
[330232982,1719197237890,-796.34,0.00016438,2]
[330232983,1719197237910,-202.15955751,0.00016438,2]
[330232984,1719197237929,-510.52575812,0.00016438,2]
[330232985,1719197237949,-514.36007702,0.00016438,2]
[330232986,1719197237969,-500.0,0.00016438,2]
[330232987,1719197237988,-500.0,0.00016438,2]
[330232988,1719197238009,-507.18863497,0.00016438,2]
[330232989,1719197238039,-500.0,0.00016438,2]
[330232990,1719197238067,-511.1449263,0.00016438,2]
[330232991,1719197238091,-505.77129734,0.00016438,2]
[330232992,1719197238111,-500.0,0.00016438,2]
[330232993,1719197238131,-500.16032914,0.00016438,2]
[330232994,1719197238153,-501.16396724,0.00016438,2]
[330232995,1719197238173,-504.43252799,0.00016438,2]
[330232996,1719197238193,-500.0,0.00016438,2]
[330232997,1719197238213,-510.54944065,0.00016438,2]
[330232998,1719197238233,-1110.07,0.00016438,2]
[330232999,1719197238253,-521.09,0.00016438,2]
[330233000,1719197238273,-269.06337294,0.00016438,2]
[330233001,1719197238293,-500.0,0.00016438,2]
[330233002,1719197238314,-602.49,0.00016438,2]
[330233003,1719197238335,-508.91105325,0.00016438,2]
[330233004,1719197238355,-500.0,0.00016438,2]
[330233005,1719197238375,-512.32433393,0.00016438,2]
[330233006,1719197238395,-500.0,0.00016438,2]
[330233007,1719197238414,-500.0,0.00016438,2]
[330233008,1719197238434,-517.91,0.00016438,2]
[330233009,1719197238454,-528.09626826,0.00016438,2]
[330233010,1719197238474,-509.80709785,0.00016438,2]
[330233011,1719197238495,-500.0,0.00016438,2]
[330233012,1719197238514,-876.56,0.00016438,2]
[330233013,1719197238534,-254.62759597,0.00016438,2]
[330233014,1719197238555,-510.21629241,0.00016438,2]
[330233015,1719197238582,-2695.58,0.00016438,2]
[330233016,1719197238603,-508.93468989,0.00016438,2]
[330233017,1719197238625,-509.86011261,0.00016438,2]
[330233018,1719197238647,-500.0,0.00016438,2]
[330233019,1719197238668,-159.220322,0.00016438,2]
[330233020,1719197238689,-515.03029125,0.00016438,2]
[330233021,1719197238710,-502.90119864,0.00016438,2]
[330233022,1719197238730,-250.0,0.00016438,2]
[330233023,1719197238751,-500.0,0.00016438,2]
[330233024,1719197238772,-505.0278257,0.00016438,2]
[330233025,1719197238792,-509.23645367,0.00016438,2]
[330233026,1719197238813,-508.08156746,0.00016438,2]
[330233027,1719197238837,-500.0,0.00016438,2]
[330233028,1719197238857,-500.0,0.00016438,2]
[330233029,1719197238878,-507.98321702,0.00016438,2]
[330233030,1719197238899,-500.0,0.00016438,2]
[330233031,1719197238920,-500.0,0.00016438,2]
[330233032,1719197238941,-500.0,0.00016438,2]
[330233033,1719197238962,-1028.89,0.00016438,2]
[330233034,1719197238982,-1185.68,0.00016438,2]
[330233035,1719197239002,-501.42338681,0.00016438,2]
[330233036,1719197239022,-500.0,0.00016438,2]
[330233037,1719197239042,-500.0,0.00016438,2]
[330233038,1719197239063,-1391.33,0.00016438,2]
[330233039,1719197239090,-500.0,0.00016438,2]
[330233040,1719197239111,-500.11637849,0.00016438,2]
[330233041,1719197239131,-745.03,0.00016438,2]
[330233042,1719197239153,-578.72,0.00016438,2]
[330233043,1719197239177,-500.0,0.00016438,2]
[330233044,1719197239296,-509.85092994,0.00016438,2]
[330233045,1719197239327,-500.0,0.00016438,2]
[330233046,1719197239347,-509.30161051,0.00016438,2]
[330233047,1719197239374,-1823.71,0.00016438,2]
[330233048,1719197239397,-519.34388009,0.00016438,2]
[330233049,1719197239419,-508.30539795,0.00016438,2]
[330233050,1719197239440,-671.08,0.00016438,2]
[330233051,1719197239461,-508.38860415,0.00016438,2]
[330233052,1719197239483,-4731.23,0.00016438,2]
[330233053,1719197239503,-553.51553165,0.00016438,2]
[330233054,1719197239525,-512.99197026,0.00016438,2]
[330233055,1719197239545,-692.88,0.00016438,2]
[330233056,1719197239567,-1526.19,0.00016438,2]
[330233057,1719197239593,-517.68,0.00016438,2]
[330233058,1719197239613,-502.90414204,0.00016438,2]
[330233059,1719197239632,-516.1607494,0.00016438,2]
[330233060,1719197239653,-997.07,0.00016438,2]
[330233061,1719197239675,-500.0,0.00016438,2]
[330233062,1719197239696,-500.0,0.00016438,2]
[330233063,1719197239716,-500.0,0.00016438,2]
[330233064,1719197239737,-801.41,0.00016438,2]
[330233065,1719197239758,-500.0,0.00016438,2]
[330233066,1719197239779,-506.54371939,0.00016438,2]
[330233067,1719197239798,-500.0,0.00016438,2]
[330233068,1719197239821,-500.0,0.00016438,2]
[330233069,1719197239844,-500.39816589,0.00016438,2]
[330233070,1719197239865,-500.0,0.00016438,2]
[330233071,1719197239886,-507.81955548,0.00016438,2]
[330233072,1719197239906,-1541.0,0.00016438,2]
[330233073,1719197239926,-818.27,0.00016438,2]
[330233074,1719197239948,-5615.86,0.00016438,2]
[330233075,1719197239968,-500.0,0.00016438,2]
[330233076,1719197239989,-869.95,0.00016438,2]
[330233077,1719197240010,-504.76515533,0.00016438,2]
[330233078,1719197240030,-429.65505335,0.00016438,2]
[330233079,1719197240051,-500.0,0.00016438,2]
[330233080,1719197240079,-500.597397,0.00016438,2]
[330233081,1719197240100,-507.59362975,0.00016438,2]
[330233082,1719197240122,-3143.14,0.00016438,2]
[330233083,1719197240144,-2326.82,0.00016438,2]
[330233084,1719197240167,-509.89026838,0.00016438,2]
[330233085,1719197240189,-500.0,0.00016438,2]
[330233086,1719197240210,-151.0,0.00016438,2]
[330233087,1719197240231,-151.0,0.00016438,2]
[330233088,1719197240253,-505.49226933,0.00016438,2]
[330233089,1719197240273,-154.831503,0.00016438,2]
[330233090,1719197240293,-503.79974716,0.00016438,2]
[330233091,1719197240313,-3662.87,0.00016438,2]
[330233092,1719197240334,-500.0,0.00016438,2]
[330233093,1719197240355,-500.0,0.00016438,2]
[330233094,1719197240375,-500.19906233,0.00016438,2]
[330233095,1719197240394,-357.67699015,0.00016438,2]
[330233096,1719197240415,-255.27842611,0.00016438,2]
[330233097,1719197240436,-18266.37,0.00016438,2]
[330233098,1719197240456,-505.0,0.00016438,2]
[330233099,1719197240478,-500.0,0.00016438,2]
[330233100,1719197240500,-5738.01,0.00016438,2]
[330233101,1719197240520,-523.46139319,0.00016438,2]
[330233102,1719197240542,-515.88190662,0.00016438,2]
[330233103,1719197240563,-529.275034,0.00016438,2]
[330233104,1719197240588,-529.275034,0.00016438,2]
[330233105,1719197240610,-509.06532431,0.00016438,2]
[330233106,1719197240635,-3466.42551923,0.00016438,2]
[330233107,1719197333728,3000.0,0.000225,30]
[330233135,1719197435544,-241.2550383,0.00015001,2]
[330233136,1719197435553,-330.5349617,0.00015002,2]
[330233153,1719197439170,-41850.06717818,0.00015002,2]
[330233154,1719197439180,-1000.0,0.00015201,2]
[330233156,1719197439190,-1000.0,0.00015201,2]
[330233158,1719197439199,-500.0,0.00015602,2]
[330233160,1719197439210,-318.0694556,0.00015661,2]
[330233162,1719197439221,-245.5391087,0.00015661,2]
[330233163,1719197439231,-154.80649189,0.00015722,2]
[330233164,1719197439241,-1586.68109186,0.00015722,2]
[330233165,1719197439251,-876.0,0.00015969,2]
[330233166,1719197439261,-597.70730701,0.00016001,2]
[330233167,1719197439270,-153.0,0.00016223,2]
[330233168,1719197439279,-153.0,0.00016223,2]
[330233169,1719197439288,-153.0,0.00016223,2]
[330233170,1719197439297,-620.1492253,0.00016319,2]
[330233171,1719197439306,-1000.0,0.00016437,2]
[330233172,1719197439315,-1000.0,0.00016437,2]
[330233173,1719197439324,-1000.0,0.00016437,2]
[330233174,1719197439333,-1000.0,0.00016437,2]
[330233175,1719197439343,-1000.0,0.00016437,2]
[330233176,1719197439352,-1000.0,0.00016437,2]
[330233177,1719197439361,-260.12314948,0.00016437,2]
[330233178,1719197439370,-500.0,0.00016438,2]
[330233179,1719197439379,-500.0,0.00016438,2]
[330233180,1719197439388,-280.99431189,0.00016438,2]
[330233181,1719197439398,-514.65302917,0.00016438,2]
[330233182,1719197439407,-508.15839625,0.00016438,2]
[330233183,1719197439417,-159.0401425,0.00016438,2]
[330233184,1719197439426,-500.0,0.00016438,2]
[330233185,1719197439435,-500.0,0.00016438,2]
[330233186,1719197439444,-500.0,0.00016438,2]
[330233187,1719197439454,-508.55881966,0.00016438,2]
[330233188,1719197439464,-520.60915978,0.00016438,2]
[330233189,1719197439475,-500.0,0.00016438,2]
[330233190,1719197439484,-502.27483275,0.00016438,2]
[330233191,1719197439494,-500.0,0.00016438,2]
[330233192,1719197439650,-500.0,0.00016438,2]
[330233193,1719197439660,-530.15218146,0.00016438,2]
[330233194,1719197439670,-501.77228858,0.00016438,2]
[330233195,1719197439679,-508.21546171,0.00016438,2]
[330233196,1719197439688,-500.74752895,0.00016438,2]
[330233197,1719197439698,-414.34568095,0.00016438,2]
[330233198,1719197439707,-503.89929827,0.00016438,2]
[330233199,1719197439717,-500.56491295,0.00016438,2]
[330233200,1719197439728,-500.0,0.00016438,2]
[330233201,1719197439737,-509.2487315,0.00016438,2]
[330233202,1719197439747,-500.0,0.00016438,2]
[330233203,1719197439756,-538.23,0.00016438,2]
[330233204,1719197439766,-514.00686213,0.00016438,2]
[330233205,1719197439775,-500.0,0.00016438,2]
[330233206,1719197439785,-506.80980554,0.00016438,2]
[330233207,1719197439794,-500.0,0.00016438,2]
[330233208,1719197439803,-500.0,0.00016438,2]
[330233209,1719197439813,-538.1,0.00016438,2]
[330233210,1719197439823,-500.0,0.00016438,2]
[330233211,1719197439833,-507.28086746,0.00016438,2]
[330233212,1719197439843,-500.0,0.00016438,2]
[330233213,1719197439853,-195.3,0.00016438,2]
[330233214,1719197439863,-510.80072994,0.00016438,2]
[330233215,1719197439873,-500.71780753,0.00016438,2]
[330233216,1719197439883,-500.0,0.00016438,2]
[330233217,1719197439892,-500.0,0.00016438,2]
[330233218,1719197439902,-500.0,0.00016438,2]
[330233219,1719197439912,-473.21928333,0.00016438,2]
[330233220,1719197439921,-1170.81,0.00016438,2]
[330233221,1719197439931,-500.30261718,0.00016438,2]
[330233222,1719197439941,-500.85564693,0.00016438,2]
[330233223,1719197439951,-326.51629993,0.00016438,2]
[330233224,1719197439960,-506.85726941,0.00016438,2]
[330233225,1719197439971,-500.0,0.00016438,2]
[330233226,1719197439981,-519.27363421,0.00016438,2]
[330233227,1719197439992,-1124.36,0.00016438,2]
[330233228,1719197440001,-504.61749582,0.00016438,2]